Workbook

Sheet Sheet1
A1: I.D. 2150-00-70
A2: STH 100 INLET REPLACEMENTS
B4: Station | E4: AsBuilt | G4: Existing | J4: Proposed
B5: Current | C5: AsBuilt | E5: Structure # | G5: Structure Type | H5: Cover Type | J5: Structure Type | K5: Cover Type
B6: 294+05 | C6: 131+86 | E6: 2A | G6: 35 | H6: X | J6: 2.5x2 | K6: WM
B7: 294+45 | C7: 131+10 | E7: 2B | G7: 35 | H7: X | J7: 2.5x2 | K7: WM
B9: 311+40 | C9: 148+50 | E9: 31A | G9: 34 | H9: W | J9: 2x3 | K9: H
B11: 367+45 | C11: 204+50? | E11: NO # to 50A | H11: NOT SHOWN IN LIST
B13: 369+50 | C13: 206+25 | E13: 24B | G13: 34 | H13: W | J13: 2x3 | K13: H
B15: 379+40 | C15: 216+50 | E15: 30B | G15: 34 | H15: W | J15: 2x3 | K15: H
B17: 382+40 | C17: 219+46 | E17: 31C | G17: 34 | H17: W | J17: 2x3 | K17: H
B18: 382+40 | C18: 219+46 | E18: 31B | G18: 34 | H18: W | J18: 2x3 | K18: H
B20: 385+90 | C20: 223+00 | E20: 32B | G20: 34 | H20: W | J20: 2x3 | K20: H
B22: 389+05 | C22: 226+09 | E22: 33C | G22: 34 | H22: W | J22: 2x3 | K22: H
B23: 389+05 | C23: 226+09 | E23: 33B | G23: 34 | H23: W | J23: 2x3 | K23: H
B25: 391+95 | C25: 229+00 | E25: 34D | G25: 34 | H25: W | J25: 2x3 | K25: H
B27: 399+10 | C27: 236+25 | E27: 25D | G27: 34 | H27: W | J27: 2x3 | K27: H
B29: 400+05 | C29: 237+15 | E29: 24E | G29: 34 | H29: W | J29: 2x3 | K29: H
B31: 403+60 | C31: 240+65 | E31: 22D | G31: 31 | H31: W | J31: 2.5x2 | K31: WM
B32: 403+60 | C32: 240+65 | E32: 22C | G32: 31 | H32: W | J32: 2.5x2 | K32: WM
B34: 406+30 | C34: 243+40 | E34: 21B | G34: 35 | H34: W | J34: 2.5x2 | K34: WM

Sheet New Inlet Invert
A1: Find existing slope to use for new structure depth
A3: EXISTING | K3: NEW
H4: (invert-invert)/length*100= | N4: (exist slope*new length)/100 | O4: exist invert +or- new depth
A5: Station | B5: Asbuilt year\ Measure Down | C5: Asbuilt structure # | D5: Measure down structure # | E5: invert | F5: invert | G5: length | H5: SLOPE | J5: Station | K5: structure # | L5: pipe # | M5: length | N5: depth | O5: invert
A6: 130+86 | B6: 1969 | C6: 2A - 2 | D6: 31978-42423 | E6: 749.59 | F6: 748.33 | G6: 56 | H6: =(E6-F6)/G6*100 -> 2.25 | J6: 293+78 | K6: 1 | L6: 1a | M6: 39.08 | N6: =(H6*M6)/100 -> 0.8793 | O6: =ROUND(E6-N6,2) -> 748.71
B7: 1969 | C7: 2D - 2 | D7: 31972-42423 | E7: 748.75 | F7: 748.36 | G7: 52.2 | H7: =(E7-F7)/G7*100 -> 0.7471264368 | K7: 2 | L7: 2a | M7: 40.9 | N7: =(H7*M7)/100 -> 0.3055747126 | O7: =ROUND(E7-N7,2) -> 748.44
A10: 149+00 | B10: 1969 | C10: 31A - 31 | D10: 31913-31885 | E10: 728 | F10: 727.21 | G10: 37 | H10: =(E10-F10)/G10*100 -> 2.135135135 | J10: 311+43 | K10: 3 | L10: 3a | M10: 44.6 | N10: =(H10*M10)/100 -> 0.9522702703 | O10: =ROUND(F10+N10,2) -> 728.16
A13: 205+00 | B13: 1995-1969 | C13: 136 - 50A | D13: 31535-31533 | E13: 688.49 | F13: 687.42 | G13: 154 | H13: =(E13-F13)/G13*100 -> 0.6948051948 | J13: 367+45 | K13: 4 | L13: 4a | M13: 5 | N13: =(M13*0.01) -> 0.05 | O13: =ROUND(E13+N13,2) -> 688.54 | P13: Pipe run 1.0% from exist to New inlet
K14: 5 | L14: - | M14: change to mh
A17: 206+00 | B17: 1969 | C17: 24B - 24 | D17: 31526-31523 | E17: 676.65 | F17: 675.96 | G17: 34.9 | H17: =(E17-F17)/G17*100 -> 1.977077364 | J17: 371+91 | K17: 6 | L17: 6a | M17: 12.3 | N17: =(H17*M17)/100 -> 0.2431805158 | O17: =ROUND(E17+N17,2) -> 676.89
A20: 216+50 | B20: 1969 | C20: 30B - 30C | D20: 31496-31497 | E20: 673.54 | F20: 673.47 | G20: 31.7 | H20: =(E20-F20)/G20*100 -> 0.2208201893 | J20: 379+40 | K20: 7 | L20: 7a | M20: 9.5 | N20: =(H20*M20)/100 -> 0.02097791798 | O20: =ROUND(E20-N20,2) -> 673.52
A23: 219+46 | B23: 1995 | C23: 342-45 | D23: 27956-42424 | E23: 672.3 | F23: UNABLE TO OPEN | G23: 44.6 | J23: 382+40 | K23: 8 | L23: change to inlet | N23: APPROX. | O23: 671.67 | P23: These IE should be verified in field
C24: 45-44 | D24: 42424-31501 | E24: UNABLE TO OPEN | F24: 671.63 | G24: 10.1 | K24: 8-9 | L24: 8a | M24: 8 | O24: =F24 -> 671.63 | P24: Same invert as 31501 as it's close
A25: FIELD VERIFIED | C25: 44-126 | D25: 31501-31502 | E25: 671.63 | F25: 671.45 | G25: 22.2 | H25: =(E25-F25)/G25*100 -> 0.8108108108 | K25: 9-10 | L25: 9a | M25: 14 | N25: =(H25*M25)/100 -> 0.1135135135 | O25: =ROUND(E25-N25,2) -> 671.52
A26: MESURE DOWNS | C26: 126-220 | D26: 31502-EXIST | E26: 671.45 | F26: 670.28 | G26: 40.6 | H26: unable to measure S. IE | K26: 10-11 | L26: 10a | M26: 7 | O26: 671.47
K27: 11-12 | L27: 11a | M27: 5 | N27: APPROX. | O27: =E26 -> 671.45
D29: 28143-31447 | E29: 669.7 | F29: 669.35 | G29: 39.6 | H29: =(E29-F29)/G29*100 -> 0.8838383838 | J29: 385+93 | K29: 12 | L29: 12a | M29: 4.3 | N29: =(H29*M29)/100 -> 0.03800505051 | O29: =ROUND(F29-N29,2) -> 669.31
D30: 31447-31448 | E30: 669.35 | F30: 668.99 | G30: 31.6 | H30: =(E30-F30)/G30*100 -> 1.139240506 | L30: 12b | M30: 16.4
D31: 31448-31449 | E31: 668.89 | F31: 668.62 | G31: 38.8 | H31: =(E31-F31)/G31*100 -> 0.6958762887 | K31: 13 | L31: 13a | M31: 7 | N31: =(H31*M31)/100 -> 0.04871134021 | O31: =ROUND(E31+N31,2) -> 668.94
D34: 28273-31436 | E34: 665.77 | F34: 665.32 | G34: 41.8 | H34: =(E34-F34)/G34*100 -> 1.076555024 | J34: 389+02 | K34: 14 | L34: 14a | M34: change to inlet | O34: 665.22
D35: 31436-31435 | E35: 665.22 | F35: 665.19 | G35: 10 | H35: =(E35-F35)/G35*100 -> 0.3 | K35: 15 | L35: 15a | M35: change to mh | O35: 665.09
D36: 31435-31439 | E36: 665.09 | F36: 664.84 | G36: 18.4 | H36: =(E36-F36)/G36*100 -> 1.358695652 | K36: 16 | L36: 16a | M36: 9.2 | N36: =(H36*M36)/100 -> 0.125 | O36: =ROUND(E36-N36,2) -> 664.97
D37: 31439-34163 | E37: 664.74 | F37: 663.59 | G37: 50.5 | H37: 2.277227723 | K37: 17 | M37: 7 | N37: =(H37*M37)/100 -> 0.1594059406 | O37: =ROUND(O36-N37,2) -> 664.81
A40: 229+00 | B40: 1969 | C40: 34C-34D | D40: 31430-31432 | E40: 662.52 | F40: 662.34 | G40: 22.4 | H40: 0.8035714286 | J40: 391+92 | K40: 18 | L40: 18a | M40: 9 | N40: =(H40*M40)/100 -> 0.07232142857 | O40: =ROUND(E40-N40,2) -> 662.45
C41: 34D-34 | D41: 31432-31469 | E41: 662.24 | F41: UNABLE TO OPEN | H41: 0.93 | K41: 19 | L41: change to mh | M41: 12.1 | N41: =(H41*M41)/100 -> 0.11253 | O41: =E41-N41 -> 662.12747
K44: 20 | M44: change to mh | O44: 659.44
A45: 236+25 | B45: 1969 | C45: 25C-25D | D45: 31015-31017 | E45: 659.44 | F45: 659.15 | G45: 30 | H45: =(E45-F45)/G45*100 -> 0.9666666667 | J45: 399+18 | K45: 21 | L45: 20a | M45: 7 | N45: =(H45*M45)/100 -> 0.06766666667 | O45: =ROUND(E45-N45,2) -> 659.37
D48: 29034-31022 | E48: 659.93 | F48: 659.49 | G48: 47.2 | H48: =(E48-F48)/G48*100 -> 0.9322033898 | J48: 400+08 | M48: 7 | N48: =(H48*M48)/100 -> 0.06525423729 | O48: =ROUND(F48-N48,2) -> 659.42
D49: 31022-31020 | E49: 659.39 | F49: 659.55 | G49: 6.7 | H49: =(E49-F49)/G49*100 -> -2.388059701 | I49: IE does not make sense | L49: These IE should be verified in field | O49: 659.39 | Q49: 31022-31020 | R49: 659.49 | T49: 7 | U49: =R49-(T49*U50/100) -> 659.4244681 | V49: used next run's slope
A50: 237+30 | B50: 1969 | C50: 24C-24E | E50: 79.55 | F50: 79.05 | G50: 54 | H50: =(E50-F50)/G50*100 -> 0.9259259259 | K50: 24e ex | L50: exist mh | O50: 659.45 | Q50: 29034-31022 | R50: 659.93 | S50: 659.49 | T50: 47 | U50: =(R50-S50)/T50*100 -> 0.9361702128
D51: 31020-31019 | E51: 659.45 | F51: 659.18 | G51: 16 | H51: 1.6875 | K51: 23 | L51: 23a | O51: 659.44 | R51: 659.42 | S51: 659.18 | T51: 5 | U51: =R51-((R51-S51)/T51) -> 659.372
D54: 30222-31050 | E54: 660.48 | F54: 659.74 | G54: 92 | H54: =(E54-F54)/G54*100 -> 0.8043478261 | J54: 403+56 | K54: 40 | L54: These IE should be verified in field | O54: =E56 -> 658.95
D55: 12" inlet-31050 | E55: NOT MEASURED | F55: 661.05 | O55: 661.04 | P55: Inlet moved short distance, SE IE
D56: 31050-31052 | E56: 658.95 | F56: 658.9 | G56: 24 | H56: =(E56-F56)/G56*100 -> 0.2083333333 | K56: 41 | L56: 40a | M56: 7.2 | N56: =(H56*M56)/100 -> 0.015 | O56: =ROUND(E56-N56,2) -> 658.94
A57: 240+65 | B57: 1969 | C57: 22d-22 | D57: 31052-31033 | E57: 658.8 | F57: =E57 - 0.25 -> 658.55 | G57: 36 | H57: =(E57-F57)/G57*100 -> 0.6944444444 | I57: 658.55 from 1969 asbuilt | K57: 42 | L57: 41a | M57: 14.2 | O57: 658.8
B58: 2006 60th St. | D58: 7-7b | E58: 660.49 | F58: 660.33 | G58: 40 | H58: =(E58-F58)/G58*100 -> 0.4 | K58: 43 | L58: 42a | M58: 8 | N58: =(H57*M58)/100 -> 0.05555555556 | O58: =ROUND(E57-N58,2) -> 658.74
A61: 243+40 | B61: 1969 | C61: 21a-21b | D61: 31064-31063 | E61: 667.38 | F61: 667.21 | G61: 32 | H61: =(E61-F61)/G61*100 -> 0.53125 | J61: 406+32 | K61: 44 | M61: 17 | N61: =(H61*M61)/100 -> 0.0903125 | O61: =ROUND(E61-N61,2) -> 667.29
C62: 21b-21c | D62: 31063-31053 | E62: 667.11 | F62: 666.91 | G62: 32 | H62: =(E62-F62)/G62*100 -> 0.625 | M62: 5 | N62: =(H62*M62)/100 -> 0.03125 | O62: =ROUND(E62-N62,2) -> 667.08
